fUST/lending_fUST_20250416
["ID","MTS","AMOUNT","RATE_DAILY","PERIOD"]
[358160139,1744806573154,-22923.0642592,0.0002,2]
[358160140,1744806574805,-286.5351,0.0002,2]
[358160263,1744806638611,-2286.29673295,0.0002,2]
[358160264,1744806638624,-2064.54059931,0.0002,2]
[358160266,1744806638633,-425.70019114,0.00021652,2]
[358160267,1744806638643,-425.70019108,0.00024611,2]
[358160269,1744806638653,-223.0,0.00024999,2]
[358160270,1744806638662,-300.0,0.00024999,2]
[358160271,1744806638671,-806.78075198,0.00025,2]
[358160274,1744806638706,-8351.11280775,0.00025,2]
[358160324,1744806640155,-586.28605956,0.00025,2]
[358160329,1744806640264,-700.2151947,0.00025,2]
[358160331,1744806640276,-1251.77327944,0.00025,2]
[358160332,1744806640286,-316.87766565,0.000259,6]
[358160436,1744806643205,-26.91267506,0.000259,6]
[358160439,1744806643221,-11.75562156,0.000259,6]
[358160443,1744806643231,-500.0,0.00025999,2]
[358160446,1744806643241,-500.0,0.00025999,2]
[358160449,1744806643251,-500.0,0.00025999,2]
[358160452,1744806643262,-500.0,0.00025999,2]
[358160453,1744806643273,-443.97876868,0.00025999,2]
[358160454,1744806643283,-500.0,0.00025999,2]
[358160456,1744806643294,-500.0,0.00025999,2]
[358160457,1744806643304,-225.0,0.00025999,2]
[358160458,1744806643315,-500.25643215,0.00025999,2]
[358160460,1744806643325,-1378.05954984,0.00026,2]
[358160553,1744806646118,-4859.19176052,0.00026,2]
[358160554,1744806646129,-669.64196294,0.00026,3]
[358160556,1744806646139,-7757.0,0.00026,2]
[358160557,1744806646150,-355.54596219,0.00026521,6]
[358160558,1744806646160,-355.54596219,0.00027141,7]
[358160560,1744806646172,-420.0,0.00027205,2]
[358160561,1744806646182,-425.70019108,0.0002757,2]
[358160563,1744806646194,-355.54596219,0.00027762,7]
[358160564,1744806646207,-355.54596219,0.00028383,7]
[358160565,1744806646218,-355.54596219,0.00029003,8]
[358160567,1744806646228,-514.0,0.00029605,2]
[358160568,1744806646238,-355.54596219,0.00029624,8]
[358160569,1744806646249,-1551.46413494,0.0003,10]
[358160571,1744806646259,-355.54596219,0.00030245,9]
[358160572,1744806646269,-425.70019108,0.00030529,2]
[358160573,1744806646278,-355.54596219,0.00030866,9]
[358160575,1744806646288,-355.54596219,0.00031486,10]
[358160576,1744806646298,-355.54596219,0.00032107,10]
[358160577,1744806646309,-355.54596219,0.00032728,10]
[358160579,1744806646319,-355.54596219,0.00033348,11]
[358160580,1744806646330,-425.70019108,0.00033488,2]
[358160582,1744806646340,-355.54596219,0.00033969,11]
[358160583,1744806646351,-355.54596219,0.0003459,12]
[358160584,1744806646362,-160.0,0.00034593,2]
[358160586,1744806646375,-355.54596219,0.0003521,12]
[358160587,1744806646388,-500.0,0.00035616,7]
[358160589,1744806646398,-500.0,0.00035616,7]
[358160590,1744806646408,-619.31626946,0.00035616,7]
[358160591,1744806646419,-355.54596219,0.00035831,12]
[358160593,1744806646430,-300.0,0.00036312,2]
[358160594,1744806646439,-425.70019108,0.00036447,2]
[358160595,1744806646450,-355.54596219,0.00036452,13]
[358160597,1744806646462,-355.54596219,0.00037072,13]
[358160598,1744806646472,-355.54596219,0.00037693,14]
[358160600,1744806646483,-199.64906758,0.00038,14]
[358160601,1744806646493,-6700.51114455,0.000383,2]
[358164037,1744806706608,257.45974531,0.00025,120]
[358164807,1744807649127,-478.6375257,0.00024905,2]
[358164808,1744807649149,-219.39249918,0.00024912,2]
[358164821,1744807767196,-158.13598448,0.000249,2]
[358164823,1744807836450,-211.1174264,0.00024802,2]
[358164824,1744807836459,-125.78385682,0.000249,2]
[358164825,1744807836468,-114.89394443,0.00024912,2]
[358164826,1744807836479,-960.05583154,0.00024912,2]
[358164827,1744807836490,-5189.12499635,0.00024912,2]
[358164828,1744807836499,-250.0,0.00024941,2]
[358164829,1744807836509,-180.63757158,0.0002586,2]
[358164830,1744807836518,-180.63757156,0.00025867,2]
[358164831,1744807836527,-171.06423259,0.00025872,2]
[358164832,1744807836536,-180.63757156,0.00025874,2]
[358164833,1744807836548,-218.09118128,0.00025898,8]
[358164834,1744807836558,-2134.64702566,0.00025899,2]
[358164835,1744807836578,-47865.35297434,0.00025899,2]
[358164836,1744807836588,-300.0,0.00025899,2]
[358164837,1744807836599,-300.0,0.00025899,2]
[358164838,1744807836609,-8291.22987546,0.000259,6]
[358164839,1744807836618,-394.86743757,0.00025959,2]
[358164840,1744807836628,-500.0,0.00025959,2]
[358164841,1744807836637,-500.0,0.00025959,2]
[358164842,1744807836647,-500.0,0.00025959,2]
[358164843,1744807836656,-500.0,0.00025959,2]
[358164844,1744807836666,-954.31707505,0.00025959,2]
[358164845,1744807836675,-500.0,0.00025959,2]
[358164846,1744807836685,-500.0,0.00025959,2]
[358164847,1744807836695,-500.0,0.00025959,2]
[358164848,1744807836704,-500.0,0.00025959,2]
[358164849,1744807836714,-500.0,0.00025959,2]
[358164850,1744807836723,-954.31707505,0.00025959,2]
[358164851,1744807836733,-179.77941715,0.00025959,2]
[358164852,1744807836742,-500.0,0.00025959,2]
[358164853,1744807836752,-500.0,0.00025959,2]
[358164854,1744807836761,-500.0,0.00025959,2]
[358164855,1744807836771,-954.31707505,0.00025959,2]
[358164856,1744807836781,-500.0,0.00025959,2]
[358164857,1744807836792,-500.0,0.00025959,2]
[358164858,1744807836802,-500.0,0.00025959,2]
[358164859,1744807836811,-500.0,0.00025959,2]
[358164860,1744807836821,-954.31707505,0.00025959,2]
[358164861,1744807836830,-500.0,0.00025959,2]
[358164862,1744807836843,-500.0,0.00025959,2]
[358164863,1744807836852,-500.0,0.00025959,2]
[358164864,1744807836861,-954.31707505,0.00025959,2]
[358164865,1744807836871,-500.0,0.00025959,2]
[358164866,1744807836882,-954.31707505,0.00025959,2]
[358164867,1744807836891,-500.0,0.00025959,2]
[358164868,1744807836901,-500.0,0.00025959,2]
[358164869,1744807836912,-500.0,0.00025959,2]
[358164870,1744807836922,-500.0,0.00025959,2]
[358164871,1744807836931,-500.0,0.00025959,2]
[358164872,1744807836941,-954.31707505,0.00025959,2]
[358164873,1744807836950,-500.0,0.00025959,2]
[358164874,1744807836959,-500.0,0.00025959,2]
[358164875,1744807836969,-954.31707505,0.00025959,2]
[358164876,1744807836979,-400.0,0.00025959,2]
[358164877,1744807836988,-500.0,0.00025959,2]
[358164878,1744807836998,-500.0,0.00025959,2]
[358164879,1744807837008,-954.31707505,0.00025959,2]
[358164880,1744807837017,-500.0,0.00025959,2]
[358164881,1744807837027,-500.0,0.00025959,2]
[358164882,1744807837036,-954.31707505,0.00025959,2]
[358164883,1744807837046,-500.0,0.00025959,2]
[358164884,1744807837056,-431.78762799,0.00025959,2]
[358164885,1744807837066,-500.0,0.00025959,2]
[358164886,1744807837075,-500.0,0.00025959,2]
[358164887,1744807837085,-954.31707505,0.00025959,2]
[358164888,1744807837095,-500.0,0.00025959,2]
[358164889,1744807837105,-500.0,0.00025959,2]
[358164890,1744807837114,-500.0,0.00025959,2]
[358164891,1744807837124,-954.31707505,0.00025959,2]
[358164892,1744807837134,-500.0,0.00025959,2]
[358164893,1744807837144,-500.0,0.00025959,2]
[358164894,1744807837153,-360.25694343,0.00025959,2]
[358164895,1744807837163,-954.31707505,0.00025959,2]
[358164896,1744807837173,-500.0,0.00025959,2]
[358164897,1744807837183,-954.31707505,0.00025959,2]
[358164898,1744807837194,-500.0,0.00025959,2]
[358164899,1744807837206,-500.0,0.00025959,2]
[358164900,1744807837216,-954.31707505,0.00025959,2]
[358164901,1744807837227,-500.0,0.00025959,2]
[358164902,1744807837237,-954.31707505,0.00025959,2]
[358164903,1744807837248,-500.0,0.00025959,2]
[358164904,1744807837259,-954.31707505,0.00025959,2]
[358164905,1744807837269,-500.0,0.00025959,2]
[358164906,1744807837279,-954.31707505,0.00025959,2]
[358164907,1744807837289,-954.31707505,0.00025959,2]
[358164908,1744807837302,-954.31707505,0.00025959,2]
[358164909,1744807837312,-954.31707505,0.00025959,2]
[358164910,1744807837321,-954.31707505,0.00025959,2]
[358164911,1744807837331,-954.31707505,0.00025959,2]
[358164912,1744807837341,-954.31707505,0.00025959,2]
[358164913,1744807837350,-954.31707505,0.00025959,2]
[358164914,1744807837361,-954.31707505,0.00025959,2]
[358164915,1744807837371,-954.31707505,0.00025959,2]
[358164916,1744807837380,-954.31707505,0.00025959,2]
[358164917,1744807837390,-954.31707505,0.00025959,2]
[358164918,1744807837400,-954.31707505,0.00025959,2]
[358164919,1744807837409,-954.31707505,0.00025959,2]
[358164920,1744807837420,-954.31707505,0.00025959,2]
[358164921,1744807837430,-954.31707505,0.00025959,2]
[358164922,1744807837440,-954.31707505,0.00025959,2]
[358164923,1744807837450,-954.31707505,0.00025959,2]
[358164924,1744807837460,-954.31707505,0.00025959,2]
[358164925,1744807837470,-954.31707505,0.00025959,2]
[358164926,1744807837480,-954.31707505,0.00025959,2]
[358164927,1744807837490,-954.31707505,0.00025959,2]
[358164928,1744807837500,-954.31707505,0.00025959,2]
[358164929,1744807837509,-954.31707505,0.00025959,2]
[358164930,1744807837519,-954.31707505,0.00025959,2]
[358164931,1744807837529,-954.31707505,0.00025959,2]
[358164932,1744807837539,-954.31707505,0.00025959,2]
[358164933,1744807837551,-8212.80362731,0.00025959,2]
[358164934,1744807837562,-621.64080314,0.00025959,3]
[358164935,1744807837572,-500.0,0.0002596,2]
[358164936,1744807837582,-44405.1279735,0.00025961,2]
[358164937,1744807837592,-151.0,0.00025974,2]
[358164938,1744807837602,-151.0,0.00025974,2]
[358164939,1744807837611,-852.887773,0.00025974,7]
[358164940,1744807837621,-852.887773,0.00025974,7]
[358164941,1744807837631,-151.0,0.00025976,2]
[358164942,1744807837641,-151.0,0.00025976,2]
[358164943,1744807837651,-852.887773,0.00025976,7]
[358164944,1744807837661,-852.887773,0.00025976,7]
[358164945,1744807837670,-500.0,0.00026,2]
[358164946,1744807837680,-500.0,0.00026,2]
[358164947,1744807837689,-500.0,0.00026,2]
[358164948,1744807837698,-502.58819591,0.00026,2]
[358164949,1744807837707,-500.92314012,0.00026,2]
[358164951,1744807837717,-500.0,0.00026,2]
[358164952,1744807837727,-22202.5639868,0.0002639,2]
[358164953,1744807837737,-8291.22987542,0.00026486,6]
[358164954,1744807837747,-500.0,0.000268,2]
[358164955,1744807837757,-500.0,0.000268,2]
[358164956,1744807837766,-500.0,0.000268,2]
[358164957,1744807837776,-500.0,0.000268,2]
[358164958,1744807837786,-500.0,0.000268,2]
[358164959,1744807837796,-500.0,0.000268,2]
[358164960,1744807837807,-500.0,0.000268,2]
[358164962,1744807837816,-500.0,0.000268,2]
[358164963,1744807837826,-500.0,0.000268,2]
[358164964,1744807837839,-500.0,0.000268,2]
[358164965,1744807837852,-501.86117556,0.000268,2]
[358164966,1744807837862,-500.0,0.000268,2]
[358164967,1744807837872,-519.56836175,0.000268,2]
[358164968,1744807837881,-160.44381894,0.000268,2]
[358164969,1744807837891,-500.0,0.000268,2]
[358164970,1744807837900,-171.06423258,0.00026902,2]
[358164971,1744807837910,-151.0,0.00027072,2]
[358164972,1744807837920,-151.0,0.00027072,2]
[358164973,1744807837930,-852.887773,0.00027072,7]
[358164974,1744807837939,-852.887773,0.00027072,7]
[358164975,1744807837949,-8291.22987542,0.00027072,7]
[358164976,1744807837959,-500.0,0.00027333,2]
[358164977,1744807837968,-241.12492645,0.000275,5]
[358164978,1744807837978,-500.0,0.000275,5]
[358164979,1744807837988,-500.0,0.000275,4]
[358164980,1744807837997,-552.10236871,0.000275,5]
[358164982,1744807838006,-500.0,0.000275,5]
[358164984,1744807838016,-8291.22987542,0.00027659,7]
[358164985,1744807838026,-171.06423258,0.00027931,2]
[358164986,1744807838036,-151.0,0.0002799,2]
[358164987,1744807838048,-151.0,0.0002799,2]
[358164989,1744807838057,-420.0,0.00028031,2]
[358164991,1744807838066,-228.4176923,0.00028071,2]
[358164993,1744807838076,-420.0,0.00028157,2]
[358164995,1744807838085,-8291.22987542,0.00028245,7]
[358164996,1744807838095,-852.887773,0.00028245,7]
[358164997,1744807838105,-852.887773,0.00028245,7]
[358164998,1744807838115,-22202.5639868,0.00028363,2]
[358164999,1744807838124,-151.0,0.00028831,2]
[358165000,1744807838134,-151.0,0.00028831,2]
[358165001,1744807838143,-8291.22987542,0.00028831,8]
[358165002,1744807838153,-8291.22987542,0.00029417,8]
[358165003,1744807838162,-44405.1279735,0.0002998,2]
[358165004,1744807838171,-35956.24727296,0.0002999,2]
[358165005,1744807838478,-694.2,0.0002999,2]
[358165006,1744807838493,-63349.55272704,0.0002999,2]
[358165007,1744807838503,-852.887773,0.0002999,7]
[358165008,1744807838513,-852.887773,0.0002999,7]
[358165009,1744807838523,-212.0,0.0003,2]
[358165010,1744807838532,-2000.0,0.0003,4]
[358165011,1744807838543,-2055.91577303,0.00030003,9]
[358165012,1744807838555,-434.81370448,0.00030003,9]
[358165013,1744807838566,-895.10319183,0.00030003,9]
[358165021,1744807843451,-954.31707505,0.00025959,2]
[358165022,1744807843461,-4905.39720608,0.00030003,9]
[358165023,1744807843471,-587.0,0.00030339,2]
[358165024,1744807843481,-8291.22987542,0.0003059,9]
[358165025,1744807843492,-151.0,0.0003059,2]
[358165026,1744807843501,-151.0,0.0003059,2]
[358165027,1744807843511,-180.0,0.00030611,2]
[358165028,1744807843520,-22202.5639868,0.00031166,2]
[358165029,1744807843530,-8291.22987542,0.00031176,9]
[358165030,1744807843539,-852.887773,0.00031176,7]
[358165031,1744807843550,-852.887773,0.00031176,7]
[358165032,1744807843560,-209.460881,0.00031507,7]
[358165033,1744807843570,-4585.71354021,0.00031762,10]
[358165035,1744807843586,-2119.84925108,0.00031762,10]
[358165039,1744807846201,-1585.66708413,0.00031762,10]
[358165040,1744807846212,-2000.0,0.00032,4]
[358165041,1744807846222,-500.0,0.00032279,5]
[358165042,1744807846232,-500.0,0.00032279,5]
[358165043,1744807846242,-500.0,0.00032279,5]
[358165044,1744807846252,-1000.0,0.00032279,5]
[358165045,1744807846262,-500.0,0.00032279,2]
[358165046,1744807846272,-1000.0,0.00032279,5]
[358165047,1744807846281,-1000.0,0.00032279,5]
[358165048,1744807846291,-151.0,0.00032348,2]
[358165049,1744807846301,-151.0,0.00032348,2]
[358165050,1744807846311,-852.887773,0.00032348,7]
[358165051,1744807846321,-852.887773,0.00032348,7]
[358165052,1744807846331,-8291.22987542,0.00032348,10]
[358165053,1744807846342,-228.4176923,0.0003247,2]
[358165054,1744807846352,-500.0,0.00032813,2]
[358165055,1744807846362,-8291.22987542,0.00032934,10]
[358165056,1744807846372,-1000.0,0.00032979,5]
[358165057,1744807846382,-151.0,0.0003298,2]
[358165058,1744807846392,-151.0,0.0003298,2]
[358165059,1744807846402,-852.887773,0.0003298,14]
[358165060,1744807846412,-852.887773,0.0003298,14]
[358165061,1744807846421,-1468.72,0.00033,30]
[358165062,1744807846432,-1463.86,0.000334,30]
[358165063,1744807846442,-22202.5639868,0.00033511,2]
[358165064,1744807846452,-8291.22987542,0.00033521,11]
[358165065,1744807846462,-2000.0,0.00034,4]
[358165066,1744807846472,-151.0,0.00034,13]
[358165067,1744807846482,-151.0,0.00034097,2]
[358165068,1744807846492,-206.742878,0.00034097,2]
[358165069,1744807846502,-299.5041878,0.00034097,14]
[358165082,1744808964179,-735.4622754,0.00024376,2]
[358165083,1744808964199,-1679.9622999,0.00024522,2]
[358165084,1744808964220,-198.5596619,0.00024652,2]
[358165085,1744808964240,-500.0,0.00024652,2]
[358165086,1744808964260,-401.22696958,0.00024652,2]
[358165087,1744808964282,-3864.4996342,0.00024812,2]
[358165088,1744808964303,-300.0,0.00024899,2]
[358165089,1744808964323,-473.508854,0.000249,2]
[358165090,1744808964344,-250.0,0.00024914,2]
[358165091,1744808964364,-994.86,0.00025,2]
[358165092,1744808964384,-666.193171,0.00025157,2]
[358165093,1744808964405,-292.32538603,0.00025832,2]
[358165094,1744808964426,-156.92061257,0.00025832,2]
[358165095,1744808964449,-2437.0648619,0.000259,6]
[358165096,1744808966092,-2866.90296211,0.000259,6]
[358165097,1744808966116,-729.59445644,0.00025922,2]
[358165099,1744809032373,-300.0,0.00025921,2]
[358165100,1744809032384,-126.18,0.00025922,2]
[358165101,1744809032429,-553.83063043,0.00025922,2]
[358165102,1744809032441,-475.9,0.00025922,2]
[358165110,1744809038354,-16004.67293693,0.00025922,2]
[358165111,1744809038365,-500.0,0.0002593,2]
[358165112,1744809038375,-500.0,0.0002593,2]
[358165113,1744809038385,-500.0,0.0002593,2]
[358165114,1744809038395,-490.61225539,0.0002593,2]
[358165115,1744809038405,-853.32059269,0.0002593,2]
[358165116,1744809038415,-524.37504038,0.0002593,2]
[358165117,1744809038425,-500.0,0.0002593,2]
[358165118,1744809038435,-500.0,0.0002593,2]
[358165119,1744809038446,-853.32059269,0.0002593,2]
[358165120,1744809038460,-538.17811908,0.0002593,2]
[358165121,1744809038470,-500.0,0.0002593,2]
[358165122,1744809038480,-500.0,0.0002593,2]
[358165123,1744809038493,-500.0,0.0002593,2]
[358165124,1744809038503,-853.32059269,0.0002593,2]
[358165125,1744809038513,-853.32059269,0.0002593,2]
[358165126,1744809038523,-500.0,0.0002593,2]
[358165127,1744809038534,-500.0,0.0002593,2]
[358165128,1744809038543,-500.0,0.0002593,2]
[358165129,1744809038554,-853.32059269,0.0002593,2]
[358165130,1744809038565,-500.0,0.0002593,2]
[358165131,1744809038575,-500.0,0.0002593,2]
[358165132,1744809038586,-500.0,0.0002593,2]
[358165133,1744809038597,-853.32059269,0.0002593,2]
[358165134,1744809038607,-500.0,0.0002593,2]
[358165135,1744809038617,-500.0,0.0002593,2]
[358165136,1744809038628,-500.0,0.0002593,2]
[358165137,1744809038639,-853.32059269,0.0002593,2]
[358165138,1744809038649,-853.32059269,0.0002593,2]
[358165139,1744809038660,-500.0,0.0002593,2]
[358165140,1744809038670,-853.32059269,0.0002593,2]
[358165141,1744809038680,-853.32059269,0.0002593,2]
[358165142,1744809038690,-853.32059269,0.0002593,2]
[358165143,1744809038701,-269.83032444,0.0002593,2]
[358165144,1744809038722,-583.49026825,0.0002593,2]
[358165145,1744809038733,-853.32059269,0.0002593,2]
[358165146,1744809038743,-40.59172469,0.0002593,2]
[358165147,1744809038791,-812.728868,0.0002593,2]
[358165148,1744809038802,-853.32059269,0.0002593,2]
[358165149,1744809038812,-853.32059269,0.0002593,2]
[358165150,1744809038822,-853.32059269,0.0002593,2]
[358165151,1744809038833,-853.32059269,0.0002593,2]
[358165152,1744809038843,-853.32059269,0.0002593,2]
[358165153,1744809038853,-853.32059269,0.0002593,2]
[358165154,1744809038864,-853.32059269,0.0002593,2]
[358165155,1744809038874,-853.32059269,0.0002593,2]
[358165156,1744809038885,-853.32059269,0.0002593,2]
[358165157,1744809038895,-853.32059269,0.0002593,2]
[358165158,1744809038908,-853.32059269,0.0002593,2]
[358165159,1744809038919,-853.32059269,0.0002593,2]
[358165160,1744809038930,-853.32059269,0.0002593,2]
[358165161,1744809038942,-853.32059269,0.0002593,2]
[358165162,1744809038953,-853.32059269,0.0002593,2]
[358165163,1744809038963,-853.32059269,0.0002593,2]
[358165164,1744809038973,-853.32059269,0.0002593,2]
[358165165,1744809038983,-30.55095397,0.0002593,2]
[358165166,1744809038996,-822.76963872,0.0002593,2]
[358165167,1744809039007,-853.32059269,0.0002593,2]
[358165168,1744809039017,-853.32059269,0.0002593,2]
[358165169,1744809039027,-853.32059269,0.0002593,2]
[358165170,1744809039038,-853.32059269,0.0002593,2]
[358165171,1744809039047,-853.32059269,0.0002593,2]
[358165172,1744809039057,-853.32059269,0.0002593,2]
[358165173,1744809039067,-853.32059269,0.0002593,2]
[358165174,1744809039077,-853.32059269,0.0002593,2]
[358165175,1744809039087,-853.32059269,0.0002593,2]
[358165176,1744809039098,-853.32059269,0.0002593,2]
[358165177,1744809039108,-853.32059269,0.0002593,2]
[358165178,1744809039118,-853.32059269,0.0002593,2]
[358165179,1744809039128,-853.32059269,0.0002593,2]
[358165180,1744809039139,-853.32059269,0.0002593,2]
[358165181,1744809039148,-853.32059269,0.0002593,2]
[358165182,1744809039158,-853.32059269,0.0002593,2]
[358165183,1744809039169,-853.32059269,0.0002593,2]
[358165184,1744809039179,-8990.38676786,0.00025931,2]
[358165185,1744809039189,-500.0,0.00025931,2]
[358165186,1744809039198,-151.0,0.00025939,2]
[358165187,1744809039209,-300.0,0.00025955,2]
[358165188,1744809039219,-160.0,0.00025973,2]
[358165189,1744809039229,-156.587,0.00025994,2]
[358165190,1744809039239,-162.380719,0.00026049,2]
[358165191,1744809039249,-168.3888056,0.00026104,2]
[358165192,1744809039259,-174.61919141,0.00026159,2]
[358165193,1744809039269,-500.0,0.00026205,2]
[358165194,1744809039280,-181.08010149,0.00026214,2]
[358165195,1744809039290,-338.78006524,0.00026269,2]
[358165196,1744809039300,-500.0,0.000263,2]
[358165197,1744809039310,-500.0,0.000263,2]
[358165198,1744809039320,-308.35685031,0.000263,2]
[358165199,1744809039330,-500.0,0.000263,2]
[358165200,1744809039340,-571.73651187,0.000263,2]
[358165201,1744809039349,-500.0,0.000263,2]
[358165202,1744809039359,-500.0,0.000263,2]
[358165203,1744809039369,-500.0,0.000263,2]
[358165204,1744809039378,-500.0,0.000263,2]
[358165205,1744809039388,-500.0,0.000263,2]
[358165206,1744809039398,-500.0,0.000263,2]
[358165207,1744809039407,-17890.1780238,0.00026829,2]
[358165208,1744809039418,-151.0,0.00026839,2]
[358165209,1744809039428,-151.0,0.00026839,2]
[358165210,1744809039438,-341.155109,0.00026839,7]
[358165211,1744809039448,-341.155109,0.00026839,7]
[358165212,1744809039457,-2198.06237145,0.00026839,2]
[358165225,1744809043375,-2557.53762855,0.00026839,2]
[358165226,1744809043384,-35780.3560477,0.00026839,2]
[358165227,1744809043394,-2658.2,0.00026849,20]
[358165228,1744809043403,-2658.2,0.00026849,20]
[358165229,1744809043412,-2658.2,0.00026849,20]
[358165230,1744809043421,-2658.2,0.00026849,20]
[358165231,1744809043431,-2658.2,0.00026849,20]
[358165232,1744809043441,-2658.2,0.00026849,20]
[358165233,1744809043451,-2658.2,0.00026849,20]
[358165234,1744809043460,-2658.2,0.00026849,20]
[358165235,1744809043470,-2658.2,0.00026849,20]
[358165236,1744809043480,-2658.2,0.00026849,20]
[358165237,1744809043671,-1171.99004389,0.00026849,20]
[358165310,1744809994119,-162.4727177,0.00024322,2]
[358165311,1744810048945,-211.28504037,0.00024322,2]
[358165312,1744810077469,6116.30354108,0.00016,2]
[358165320,1744810127212,9625.89241673,0.00015,2]
[358165321,1744810127241,4734.00919971,0.00015,2]
[358165322,1744810153108,-265.38031882,0.00024322,2]
[358165347,1744810232574,-23.4761156,0.00024322,2]
[358165348,1744810232610,-598.78580751,0.00024322,2]
[358165349,1744810232620,-1381.35483899,0.00024322,2]
[358165350,1744810232630,-1000.0,0.00024422,2]
[358165351,1744810232641,-2274.46879707,0.00025,2]
[358165352,1744810232650,-213.397717,0.00025484,2]
[358165353,1744810232661,-284.33692434,0.00025821,2]
[358165354,1744810232671,-156.92061257,0.00025821,2]
[358165355,1744810232681,-300.0,0.00025899,2]
[358165356,1744810232691,-5481.17246575,0.000259,6]
[358165357,1744810232701,-151.0,0.0002591,2]
[358165358,1744810232710,-191.72352887,0.0002592,2]
[358165359,1744810232720,-391.59722671,0.0002592,2]
[358165360,1744810232730,-626.32837202,0.0002592,2]
[358165361,1744810232741,-1719.5231635,0.00025921,2]
[358165362,1744810232753,-4046.63890435,0.00025921,2]
[358165363,1744810232774,-387.84580615,0.0002592,2]
[358165364,1744810232784,-393.13090212,0.0002592,2]
[358165365,1744810232794,-1591.04467141,0.00025921,2]
[358165366,1744810232805,-160.0,0.00025954,2]
[358165367,1744810232815,-276.4367606,0.00025965,2]
[358165368,1744810232825,-429.60731417,0.00025984,2]
[358165369,1744810232835,-23170.70430118,0.00025985,2]
[358165370,1744810232848,-1729.29569882,0.00025985,2]
[358165371,1744810232859,-500.0,0.00026,2]
[358165372,1744810232872,-500.0,0.00026,2]
[358165373,1744810232883,-500.0,0.00026,2]
[358165374,1744810232893,-500.0,0.00026,2]
[358165375,1744810232903,-500.0,0.00026,2]
[358165376,1744810232914,-500.0,0.00026,2]
[358165377,1744810232924,-500.0,0.00026,2]
[358165378,1744810232934,-500.0,0.00026,2]
[358165379,1744810232944,-500.0,0.00026,2]
[358165380,1744810232954,-500.0,0.000263,2]
[358165381,1744810232965,-360.2600692,0.000263,2]
[358165382,1744810232974,-5481.17246554,0.00026521,6]
[358165383,1744810232984,-8794.30827141,0.00026809,2]
[358165384,1744810233008,-626.32837202,0.0002592,2]
[358165385,1744810233019,-793.1691089,0.00026809,2]
[358165391,1744810238617,-626.32837202,0.0002592,2]
[358165392,1744810238628,-341.38384056,0.0002592,2]
[358165400,1744810240719,-284.94453146,0.0002592,2]
[358165401,1744810240729,-626.32837202,0.0002592,2]
[358165402,1744810240738,-626.32837202,0.0002592,2]
[358165403,1744810240748,-626.32837202,0.0002592,2]
[358165404,1744810240757,-573.15969456,0.0002592,2]
[358165420,1744810243671,-53.16867746,0.0002592,2]
[358165421,1744810243681,-626.32837202,0.0002592,2]
[358165422,1744810243691,-626.32837202,0.0002592,2]
[358165423,1744810243701,-626.32837202,0.0002592,2]
[358165424,1744810243711,-626.32837202,0.0002592,2]
[358165425,1744810243720,-129.0392492,0.0002592,2]
[358165437,1744810243920,-18.05252419,0.0002592,2]
[358165450,1744810246981,-479.23659863,0.0002592,2]
[358165451,1744810246991,-626.32837202,0.0002592,2]
[358165452,1744810247001,-626.32837202,0.0002592,2]
[358165453,1744810247010,-626.32837202,0.0002592,2]
[358165454,1744810247020,-626.32837202,0.0002592,2]
[358165455,1744810247030,-258.03689199,0.0002592,2]
[358165456,1744810247161,-368.29148003,0.0002592,2]
[358165457,1744810247172,-626.32837202,0.0002592,2]
[358165458,1744810247182,-626.32837202,0.0002592,2]
[358165459,1744810247192,-626.32837202,0.0002592,2]
[358165460,1744810247202,-626.32837202,0.0002592,2]